Cogmind - Beta 15 @@@ ROGUE MODE // 2025.09.11 @ 13:08:32 Player: Petvaria Result: Destroyed by 3S-HE2(R) with Subdweller Laser Performance ------------- Evolutions (0) 0 Regions Visited (2) 400 Robots Destroyed (19) 95 Value Destroyed (452) 452 Prototype IDs (0) 0 Alien Tech Used (0) 0 Bonus (0) 0 TOTAL SCORE: 947 Bonus ------- None Cogmind --------- Core Integrity 0/250 Matter 257/300 Energy 100/100 System Corruption 0% Temperature Cool (6) Movement Core (200) Ox3 Location -10/Subcaves Parts ------- > --- POWER (1) -------- (None) > --- PROPULSION (2) --- (None) > --- UTILITY (2) ------ Medium Storage Unit Targeting Computer > --- WEAPON (2) ------- Light Assault Rifle > --- INVENTORY (10) --- Light Ion Engine Aluminum Leg Aluminum Leg Hacking Suite Subdweller Beam Cannon Flamer Flamer Peak State ------------ > --- POWER ------------ Ion Engine > --- PROPULSION ------- Light Treads Light Treads > --- UTILITY ---------- Small Storage Unit Targeting Computer > --- WEAPON ----------- Assault Rifle Assault Rifle > --- INVENTORY -------- Light Ion Engine Light Treads Aluminum Leg Aluminum Leg Compact Wheel Hacking Suite Light Assault Rifle Light Cannon [Rating: 8] Favorites ----------- Power Ion Engine Engine Ion Engine Propulsion Light Treads Treads Light Treads Utility Targeting Computer Storage Medium Storage Unit Processor Targeting Computer Weapon Assault Rifle Ballistic Gun Assault Rifle Build | -11 -10 -10 ------- Run | Yrd Mat Sub Slots Evolved . | . . . Power . | . . . Propulsion . | . . . Utility . | . . . Weapon . | . . . Parts Attached 11 | 6 3 2 Power 1 | 1 . . Engine 1 | 1 . . Core . | . . . Reactor . | . . . Propulsion 3 | 2 1 . Treads 3 | 2 1 . Leg . | . . . Wheel . | . . . Hover . | . . . Flight . | . . . Utility 3 | 1 2 . Device . | . . . Storage 2 | 1 1 . Processor 1 | . 1 . Hackware . | . . . Protection . | . . . Artifact . | . . . Weapon 4 | 2 . 2 Energy Gun . | . . . Energy Cannon . | . . . Ballistic Gun 4 | 2 . 2 Ballistic Cannon . | . . . Launcher . | . . . Special Weapon . | . . . Impact Weapon . | . . . Slashing Weapon . | . . . Piercing Weapon . | . . . Special Melee Weapon . | . . . Unidentified Prototypes . | . . . Parts Lost 7 | . . 7 Power 1 | . . 1 Propulsion 3 | . . 3 Utility . | . . . Weapon 3 | . . 3 Highest Loss Streak 6 | . . 6 To Critical Strikes . | . . . Average Backups 7 | 1 7 8 Power . | . 1 1 Propulsion 3 | . 3 2 Utility . | . . 1 Weapon 2 | . 2 4 Tool/Special . | . . . Unused Backups 11 | . 2 9 Power 1 | . . 1 Propulsion 4 | . 1 3 Utility 1 | . . 1 Weapon 5 | . 1 4 Tool/Special . | . . . Average Slot Usage (%) 96 | . 96 96 Engine 13 | . 14 13 Treads 27 | . 28 26 Storage 14 | . 14 14 Processor 11 | . 10 14 Ballistic Gun 27 | . 28 26 Peak Build Rating 8 | 6 8 8 Average Rating 7 | 4 7 7 On Entrance 4 | . 6 8 Naked Turns . | . . . Heaviest Build 19 | 14 19 19 Greatest Support 40 | 40 40 40 Greatest Overweight (x) . | . . . Average Overweight (x) . | . . . Largest Inventory Capacity 10 | 8 10 10 Average Capacity 9 | 6 8 10 Most Carried 10 | 4 8 10 Average Carried 7 | 1 7 8 Final Capacity 10 | 8 10 10 Final Carried 8 | 4 8 7 Class Distribution -------------------- 100% | Mutant Dominant Class ---------------- Mutant | -10/Materials Mutant | -10/Subcaves Resources | -11 -10 -10 ----------- Run | Yrd Mat Sub Matter Collected 730 | 163 539 28 Remotely . | . . . Salvage Created 585 | . 537 48 Parts 41 | . 36 5 Haulers Intercepted 1 | . 1 . Recyclers Shooed 3 | . 3 . Parts Field Recycled . | . . . Retrieved Matter . | . . . Parts Self-Destructed 6 | . . 6 Prevented . | . . . Kills | -11 -10 -10 ------- Run | Yrd Mat Sub Combat Hostiles Destroyed 13 | . 11 2 Guns 13 | . 11 2 Classes Destroyed 8 | . 7 1 Worker 1 | . 1 . Hauler 1 | . 1 . Recycler 1 | . 1 . Operator 2 | . 2 . Watcher 1 | . 1 . Swarmer 3 | . 3 . Grunt 8 | . 8 . Subdweller 2 | . . 2 Best Kill Streak 3 | . 3 1 Combat Bots Only 3 | . 3 1 Max Kills in Single Turn 1 | . 1 1 Gunslinging . | . . . Exploded . | . . . Melee . | . . . Uniques/NPCs Destroyed . | . . . Combat | -11 -10 -10 -------- Run | Yrd Mat Sub Hostile Shots Fired 105 | . 58 47 Missed 27 | . 19 8 Hits 78 | . 39 39 Projectile 78 | . 39 39 Critical Strikes 2 | . . 2 Damage Taken 1264 | . 433 831 Core 259 | . 32 227 Absorbed by Shields . | . . . Core Remaining (%) 100 | 100 . . Volleys Fired 93 | . 67 26 Largest 2 | . 2 2 Hottest 50 | . 40 50 Shots Fired 168 | . 134 34 Gun 168 | . 134 34 Cannon . | . . . Launcher . | . . . Special . | . . . Kinetic 168 | . 134 34 Thermal . | . . . Explosive . | . . . Electromagnetic . | . . . Robot Hit Streak 16 | . 14 16 Robot Miss Streak 5 | . 5 2 Penetration Max . | . . . Secondary Targets . | . . . Shots Hit Robots 118 | . 90 28 Core Hits 38 | . 31 7 Critical Kills . | . . . Critical Parts Destroyed . | . . . Critical Strikes . | . . . Melee Attacks . | . . . Impact . | . . . Slashing . | . . . Piercing . | . . . Sneak Attacks . | . . . Combat Hostiles . | . . . Follow-up Attacks . | . . . Damage Inflicted 1595 | . 1205 390 Guns 1594 | . 1204 390 Cannons . | . . . Explosions . | . . . Melee . | . . . Ramming 1 | . 1 . Kinetic 1594 | . 1204 390 Thermal . | . . . Explosive . | . . . Electromagnetic . | . . . Impact . | . . . Slashing . | . . . Piercing . | . . . Highest Corruption . | . . . Average Corruption . | . . . Corruption Purged . | . . . Corruption Blocked . | . . . Overload Shots . | . . . Overflow Damage . | . . . Projectiles . | . . . Explosions . | . . . Melee . | . . . Knockbacks . | . . . Impact . | . . . Kinetic . | . . . Secondary . | . . . Self-Inflicted Damage . | . . . Shots . | . . . Rammed 1 | . 1 . Targets Rammed 1 | . 1 . Kicked . | . . . Crushed . | . . . Highest Temperature 249 | . 2 249 Average Temperature 99 | . 2 138 Received Heat Transfer 646 | . 210 436 Siege Activations . | . . . Martial Activations . | . . . Shielding Activations . | . . . Robots Disrupted . | . . . Combat Hostiles . | . . . Robots Corrupted . | . . . Combat Hostiles . | . . . Parts Fried . | . . . Impact Corruptions . | . . . Robots Melted . | . . . Combat Hostiles . | . . . Parts Melted . | . . . Heat Transferred . | . . . Parts Sabotaged . | . . . Parts Stolen . | . . . Parts Stripped . | . . . Power Chain Reactions . | . . . Alert | -11 -10 -10 ------- Run | Yrd Mat Sub Maximum Alert Level . | . . . Low Security (%) 100 | 100 100 . Level 1 . | . . . Level 2 . | . . . Level 3 . | . . . Level 4 . | . . . Level 5 . | . . . High Security . | . . . Max Security . | . . . Peak Influence 198 | . 198 . Initial . | . . . Average 75 | . 80 . Influence Increases 381 | . 381 . Destroy 0b10 Robot/C 220 | . 220 . Destroy 0b10 Robot/NC 30 | . 30 . Destroy Leader 54 | . 54 . Successful Hack 16 | . 16 . Destroy Structure 1 | . 1 . Lose Combat Pursuer 60 | . 60 . Influence Decreases 381 | . 381 . Time Decay 381 | . 381 . Squads Dispatched 3 | . 3 . Investigation 1 | . 1 . Extermination . | . . . Reinforcement 2 | . 2 . Assault . | . . . Garrison . | . . . Intercept . | . . . Searches Triggered . | . . . Construction Impeded . | . . . Haulers Reinforced . | . . . Active Scanning Responses . | . . . Cargo Convoy Interrupts . | . . . Stealth | -11 -10 -10 --------- Run | Yrd Mat Sub Distress Signals 1 | . 1 . Communications Jammed . | . . . Distress Signals . | . . . Times Spotted 25 | . 22 3 Peak Tracking Total 5 | . 5 2 Tactical Retreats 3 | . 3 . Traps | -11 -10 -10 ------- Run | Yrd Mat Sub Traps Triggered . | . . . Indirectly . | . . . Trap Hack Attempts . | . . . Triggered . | . . . Disarmed . | . . . Reprogrammed . | . . . Reused . | . . . Traps Extracted . | . . . Installed . | . . . Triggered . | . . . Machines | -11 -10 -10 ---------- Run | Yrd Mat Sub Machines Disabled . | . . . Max in Single Turn . | . . . Machines Repaired . | . . . Machines Dismantled . | . . . Machines Sabotaged . | . . . Overloaded Fab Kills . | . . . Hacking | -11 -10 -10 --------- Run | Yrd Mat Sub Machines Accessed 2 | . 2 . Terminals 2 | . 2 . Fabricators . | . . . Repair Stations . | . . . Recycling Units . | . . . Scanalyzers . | . . . Garrison Access . | . . . Total Hacks 2 | . 2 . Successful 1 | . 1 . Failed 1 | . 1 . Catastrophic 1 | . 1 . Database Lockouts . | . . . Manual 2 | . 2 . Terminals 2 | . 2 . Fabricators . | . . . Repair Stations . | . . . Recycling Units . | . . . Scanalyzers . | . . . Garrison Access . | . . . Terminal Hacks . | . . . Fabricator Hacks . | . . . Repair Station Hacks . | . . . Recycling Unit Hacks . | . . . Scanalyzer . | . . . Garrison Access Hacks . | . . . Unauthorized Hacks 1 | . 1 . Terminals 1 | . 1 . Operators 1 | . 1 . Fabricators . | . . . Repair Stations . | . . . Recycling Units . | . . . Scanalyzers . | . . . Garrison Access . | . . . Data Cores Recovered . | . . . Used . | . . . Hacking Detections 1 | . 1 . Full Trace Events . | . . . Feedback Events . | . . . Feedback Blocked . | . . . Robot Schematics Acquired . | . . . Robots Built . | . . . Authchips . | . . . Time . | . . . Total Robot Build Rating . | . . . Part Schematics Acquired . | . . . Parts Built . | . . . Authchips . | . . . Time . | . . . Total Part Build Rating . | . . . Parts Repaired . | . . . Time . | . . . Parts Recycled . | . . . Recycled Matter . | . . . Retrieved Matter . | . . . Retrieved Components . | . . . Parts Scanalyzed . | . . . Part Schematics Acquired . | . . . Parts Damaged . | . . . Bothacking | -11 -10 -10 ------------ Run | Yrd Mat Sub Used RIF Installer . | . . . Robots Hacked . | . . . Non-combat . | . . . Combat . | . . . Robot Hacks Applied . | . . . Relay Couplers Released . | . . . Fabnet Peak Effective % . | . . . Robots Rewired . | . . . Allies Hacked . | . . . Hacks Repelled . | . . . Allies | -11 -10 -10 -------- Run | Yrd Mat Sub Total Allies . | . . . Largest Group . | . . . Highest-Rated Group . | . . . Highest-Rated Ally . | . . . Total Orders . | . . . Ally Attacks . | . . . Total Damage . | . . . Kills . | . . . Allies Corrupted . | . . . Allies Melted . | . . . Intel | -11 -10 -10 ------- Run | Yrd Mat Sub Active Infowar (turns) . | . . . Robot Analysis Total . | . . . Derelict Logs Recovered 1 | . . 1 Drone Launches . | . . . Drone Recoveries . | . . . Exploration | -11 -10 -10 ------------- Run | Yrd Mat Sub Turns Passed 1861 | 90 1226 545 Spaces Moved 812 | 55 511 246 Core 12 | 12 . . Treads 800 | 43 511 246 Legs . | . . . Wheels . | . . . Hover . | . . . Flight . | . . . Fastest Speed 50 | 50 160 160 Average Speed 158 | 136 160 160 Slowest Speed 160 | 160 160 160 Overloaded Moves . | . . . Propulsion Burnouts . | . . . Robots Hopped . | . . . Potential Cave-ins . | . . . Cave-ins Triggered . | . . . Exploration Rate (%) 31 | 4 64 25 Regions Visited 2 Branch Regions 1 Pre-discovered Areas 1 | . . 1 Known Exits Taken . | . . . Unknown Exits Taken 2 | 1 1 . Scrap Searched 1 | . . 1 Spaces Dug . | . . . Terrain Destroyed . | . . . Melee . | . . . Projectile . | . . . AOE . | . . . Terrain Rammed . | . . . Walls Destroyed . | . . . Machines Disabled . | . . . Actions | -11 -10 -10 --------- Run | Yrd Mat Sub Total 1222 | 70 786 366 Wait 279 | . 194 85 Move 810 | 54 510 246 Hop . | . . . Pick Up 20 | 10 6 4 Fast Attach 1 | . 1 . Attach 9 | 6 . 3 Detach . | . . . Swap 3 | . 3 . Drop 6 | . 4 2 Fire 93 | . 67 26 Melee . | . . . Ram . | . . . Kick . | . . . Crush 1 | . 1 . Escape Stasis . | . . . Rewire . | . . . Trap . | . . . Miscellaneous . | . . . Route ------- -11/Scrapyard -10/Materials (discovered 4 exits: [*Mat x2] / [*Min] / [*Sub]) -10/Subcaves (discovered 3 exits: [*Mat x2] / [*Scr]) History --------- Turn | Location | Event 33 | -11/Scrapyard | Discovered new exit (range 14) 91 | -11/Scrapyard | Entered Materials 303 | -10/Materials | Build established: Mutant 444 | -10/Materials | Discovered new exit (range 13) 857 | -10/Materials | Discovered new exit (range 15) 1159 | -10/Materials | Discovered new exit (range 10) 1210 | -10/Materials | Discovered new exit (range 12) 1317 | -10/Materials | Entered Subcaves 1318 | -10/Subcaves | Approached by a straggling Scientist 1389 | -10/Subcaves | Discovered new exit (range 11) 1401 | -10/Subcaves | Learned location of Zion (-7) 1401 | -10/Subcaves | Met a Zionite searching for "candidates" 1406 | -10/Subcaves | Shifting Twisted Machinery released Flamer 1429 | -10/Subcaves | Shifting Twisted Machinery released Flamer 1573 | -10/Subcaves | Scientist uncovered a shortcut to Scraptown 1608 | -10/Subcaves | Learned location of 1 exit from Materials 1705 | -10/Subcaves | Discovered new exit (range 9) 1831 | -10/Subcaves | Core integrity fell below 50% 1842 | -10/Subcaves | Core integrity fell below 20% 1862 | -10/Subcaves | Destroyed by 3S-HE2(R) with Subdweller Laser Last Messages --------------- Subatomizers dissect the Disposable Heat Sink. OI-U5U(c): "We're getting close, I can feel it." OI-U5U(c): "Hah, right again, there it is!" OI-U5U(c) exits level. Acquired derelict log, extracted data. Data stored: Materials exits (x1). Searching scrap... Found Sub. Power Source. Found Shrapnel Trap. Found 45 Matter. EXIT=FOUND 0S-95B(u) tweaks Twisted Machinery. Assault Rifle destroyed. Lgt. Treads destroyed. Assault Rifle destroyed. Ion Engine destroyed. Destroyed Scrap Shield. Lgt. Treads destroyed. Sub. Machine Gun destroyed. NU-1WR(R) destroyed. Map ----- +----------------------------------------------------+ | ???????# ##???????????????????????????????????? | | ????##?# &*#????????????????????????????????????? | | ?#### ##" %%#????????????????????????????????????? | | ?? % # "###????????????????????????????????????? | | ?????# ""#?????????????????????????????????????? | | ?????## "##?????????????????????????????????????? | | ??????## ###????????????????????????????????????? | | ???????## ####?????????????????????????????????? | | ??# #### ###???????????????????????????????? | | < #???????????????????????????????? | | ## " #???????????????????????????????? | | # ##### ?## % #???????????????????????????????? | | ??????##??## %##???????????????????????????????? | | ??????????### ##????????????????????????????????? | | ???????#### # ##????????????????????????????????? | | ???????# ##???????????????????????????????? | | ???????# #???????????????????????????????? | | ????## ####?????###???????????????????????? | | # ????# % #####????????# ##??????????????????????? | | "" ???# ##????????????# ##### "????????????????? | | ""#### #?????????????# "" ""????????????????? | | ""%% #????????????## """""?????????????????? | | "" ##???????##### """""?????????????????? | | "" ##?????## ## #""""""?????????????????? | | " "" #?????# #R%## """?????????????????? | | """ ##????## @# ###"?????????????????? | | # ##?????# ## ###?#????????????????????? | | ## ## ##??????## ####????????????????????????? | | ?#### #???????# ####????????????????????????? | | ????## ##???????# #???????? #??????????????? | | ?????# ########?## ###?### ##?????????????? | | ????## # #??## # #?????????????? | | ????# #???## ????????????? | | ????# ####### ## ?????????????? | | ????# ## ## ##???????????????????? | | ????# ####????????????????????? | | ????## ## ##???????????????????????? | | ?????##### #????????????????????????? | | ?????????# ##????????????????????????? | | ????????#" "" #?????????????????????????? | | ?????? """" "" #?????????????????????????? | | ????? """""" #???????????????????????? | | ???? """" ##???????????????????????? | | ???? "" #????????????????????????? | | ??? """" ???????????????????????? | | ??? ????## " " ??????????????????????? | | ??? ??????#### "##### ###?????????????????????? | | ???????????????####????###???????????????????????? | | ?????????????????????????????????????????????????? | | ?????????????????????????????????????????????????? | +----------------------------------------------------+ Best States ------------- Heat Dissipation 25 Energy Generation 10 Energy Capacity 250 Matter Stores 300 Matter Capacity 300 Sight Range 16 Terrain Scan Density 10 Evasion (%) 40 Targeting Accuracy 5 Recoil Reduction 2 Item Schematics ----------------- None Robot Schematics ------------------ None Fabricated ------------ Nothing Repaired ---------- Nothing Alien Tech Used ----------------- None Achievements -------------- None Challenges ------------ None Game ------ Seed CorruptionChainProtomatter Manual? 0 Play Time 00:09:19 Cumulative 190.9 hours Start 2025.09.11 @ 12:59:10 End 2025.09.11 @ 13:08:32 Sessions 1 Manual Loads 0 Difficulty Rogue Special Mode None Game No. 159 Rogue 159 Adventurer 0 Explorer 0 Win Type - Total 10 Types 4/0/2/2/1/0/0/0/0/1 Lore% 86 Gallery% 83 Achievement% 64 Wizard Run 0 Options --------- Layout 1 ASCII 0 Keyboard 0 Movement Numpad Keybinds 0 Fullscreen 1 Font 24/Proggy Map View 50x35 Zoom Use 0% Tactical HUD 0 Map Filters NONE Filters NONE Steam 1 RUN: 63c2dcdc-e093-4d4d-8ad1-3aa5dcdb35dc